[Event "Betsys MČR v online bleskovém šachu 2021"]
[Site "Chess.com"]
[Date "2021.04.17"]
[Round "3"]
[White "pepca"]
[Black "mysacek1414"]
[Result "1-0"]
[WhiteElo "1525"]
[BlackElo "1869"]
[TimeControl "180+1"]
[EndTime "9:26:06 PDT"]
[Termination "Uživatel pepca zvítězil na čas"]

1. e4 {[%clk 0:03:00.9]} 1... c5 {[%clk 0:02:58.1]} 2. Nc3 {[%clk 0:03:00.2]}
2... e6 {[%clk 0:02:58.2]} 3. g3 {[%clk 0:02:59.9]} 3... g6 {[%clk 0:02:54.1]}
4. Bg2 {[%clk 0:02:59.5]} 4... Bg7 {[%clk 0:02:54.5]} 5. f4 {[%clk 0:02:58.4]}
5... d6 {[%clk 0:02:54.7]} 6. d3 {[%clk 0:02:58.3]} 6... Nc6 {[%clk 0:02:55.3]}
7. Nf3 {[%clk 0:02:58.4]} 7... Nge7 {[%clk 0:02:55.8]} 8. O-O {[%clk 0:02:58.4]}
8... O-O {[%clk 0:02:56.2]} 9. Be3 {[%clk 0:02:58.4]} 9... a6 {[%clk 0:02:55.1]}
10. h3 {[%clk 0:02:56.1]} 10... b5 {[%clk 0:02:51.6]} 11. g4 {[%clk 0:02:55.8]}
11... f5 {[%clk 0:02:49.6]} 12. exf5 {[%clk 0:02:39.9]} 12... exf5 {[%clk
0:02:46.7]} 13. g5 {[%clk 0:02:36.6]} 13... b4 {[%clk 0:02:41.6]} 14. Ne2 {[%clk
0:02:31.8]} 14... Bxb2 {[%clk 0:02:38.5]} 15. Rb1 {[%clk 0:02:31.1]} 15... Bg7
{[%clk 0:02:37.1]} 16. Ng3 {[%clk 0:02:30.1]} 16... Bb7 {[%clk 0:02:34]} 17. h4
{[%clk 0:02:29.6]} 17... Nd5 {[%clk 0:02:24]} 18. Bd2 {[%clk 0:02:23.4]} 18...
Nc3 {[%clk 0:02:23.4]} 19. Bxc3 {[%clk 0:02:23]} 19... Bxc3 {[%clk 0:02:24.2]}
20. h5 {[%clk 0:02:21.4]} 20... Nd4 {[%clk 0:02:11.6]} 21. Nxd4 {[%clk
0:02:15.6]} 21... Bxd4+ {[%clk 0:02:09.8]} 22. Kh2 {[%clk 0:02:12.9]} 22... Bxg2
{[%clk 0:02:10.2]} 23. Kxg2 {[%clk 0:02:12.8]} 23... Qc7 {[%clk 0:02:00.5]} 24.
Qf3 {[%clk 0:02:05.4]} 24... Rac8 {[%clk 0:01:53]} 25. Qd5+ {[%clk 0:01:59.4]}
25... Rf7 {[%clk 0:01:48]} 26. Qe6 {[%clk 0:01:58.3]} 26... Qe7 {[%clk
0:01:22.6]} 27. Qxc8+ {[%clk 0:01:56.8]} 27... Rf8 {[%clk 0:01:13.8]} 28. Qxa6
{[%clk 0:01:51.8]} 28... Qe3 {[%clk 0:01:03.6]} 29. Qxd6 {[%clk 0:01:38.1]}
29... Re8 {[%clk 0:00:39]} 30. hxg6 {[%clk 0:01:32.2]} 30... Qd2+ {[%clk
0:00:08.5]} 31. Kh3 {[%clk 0:01:24.5]} 31... hxg6 {[%clk 0:00:02.8]} 32. Qxg6+
{[%clk 0:01:21.8]} 32... Kf8 {[%clk 0:00:03.3]} 33. Nxf5 {[%clk 0:01:15]} 1-0

[Event "Betsys MČR v online bleskovém šachu 2021"]
[Site "Chess.com"]
[Date "2021.04.17"]
[Round "3"]
[White "sharpi5135"]
[Black "Sfreedom01"]
[Result "0-1"]
[WhiteElo "780"]
[BlackElo "1334"]
[TimeControl "180+1"]
[EndTime "9:26:06 PDT"]
[Termination "Uživatel Sfreedom01 zvítězil na čas"]

1. e4 {[%clk 0:02:59.1]} 1... e5 {[%clk 0:02:58.6]} 2. Nf3 {[%clk 0:02:54.8]}
2... Nc6 {[%clk 0:02:50.1]} 3. Be2 {[%clk 0:02:49.5]} 3... d6 {[%clk 0:02:50.2]}
4. Nc3 {[%clk 0:02:46.7]} 4... Be6 {[%clk 0:02:49.2]} 5. Nd5 {[%clk 0:02:35.9]}
5... Nf6 {[%clk 0:02:44.7]} 6. Ng5 {[%clk 0:02:28]} 6... Nxd5 {[%clk 0:02:39.1]}
7. Nxe6 {[%clk 0:02:20.4]} 7... fxe6 {[%clk 0:02:33.1]} 8. exd5 {[%clk
0:02:19.9]} 8... exd5 {[%clk 0:02:33.2]} 9. c3 {[%clk 0:02:12.7]} 9... Be7
{[%clk 0:02:33]} 10. Bb5 {[%clk 0:02:05.6]} 10... Bf6 {[%clk 0:02:30.8]} 11. Qf3
{[%clk 0:01:49.2]} 11... e4 {[%clk 0:02:19.3]} 12. Qg4 {[%clk 0:01:43.4]} 12...
O-O {[%clk 0:02:15.4]} 13. O-O {[%clk 0:01:37.7]} 13... Ne5 {[%clk 0:02:14.6]}
14. Qe6+ {[%clk 0:01:26.8]} 14... Kh8 {[%clk 0:02:07.3]} 15. f4 {[%clk
0:01:19.5]} 15... Nc6 {[%clk 0:01:55.6]} 16. Bxc6 {[%clk 0:01:15.6]} 16... bxc6
{[%clk 0:01:55.4]} 17. Qg4 {[%clk 0:01:08]} 17... Qe7 {[%clk 0:01:46.5]} 18. f5
{[%clk 0:01:05.4]} 18... Rae8 {[%clk 0:01:41.9]} 19. d4 {[%clk 0:01:00.5]} 19...
exd3 {[%clk 0:01:40.3]} 20. Bf4 {[%clk 0:00:53.6]} 20... Be5 {[%clk 0:01:37.7]}
21. Bxe5 {[%clk 0:00:50.5]} 21... dxe5 {[%clk 0:01:37.7]} 22. Qh5 {[%clk
0:00:40.5]} 22... Rf6 {[%clk 0:01:31.2]} 23. Rad1 {[%clk 0:00:35.2]} 23... e4
{[%clk 0:01:30.2]} 24. Rf4 {[%clk 0:00:33.5]} 24... e3 {[%clk 0:01:27.4]} 25.
Rh4 {[%clk 0:00:31.3]} 25... Rh6 {[%clk 0:01:23.2]} 26. Qg4 {[%clk 0:00:26.6]}
26... Rxh4 {[%clk 0:01:17.4]} 27. Qg3 {[%clk 0:00:19.4]} 27... e2 {[%clk
0:01:15.8]} 28. Re1 {[%clk 0:00:17.8]} 28... d2 {[%clk 0:01:16]} 29. Rb1 {[%clk
0:00:11]} 29... d1=Q+ {[%clk 0:01:10.1]} 30. Rxd1 {[%clk 0:00:08.9]} 30...
exd1=Q+ {[%clk 0:01:09.8]} 0-1

[Event "Betsys MČR v online bleskovém šachu 2021"]
[Site "Chess.com"]
[Date "2021.04.17"]
[Round "3"]
[White "LiborRojar"]
[Black "VildaSt"]
[Result "1-0"]
[WhiteElo "2062"]
[BlackElo "1322"]
[TimeControl "180+1"]
[EndTime "9:26:07 PDT"]
[Termination "Uživatel LiborRojar zvítězil matem"]

1. e4 {[%clk 0:03:00.9]} 1... e5 {[%clk 0:02:59.4]} 2. Nf3 {[%clk 0:03:00.4]}
2... Nc6 {[%clk 0:02:59.3]} 3. Bb5 {[%clk 0:03:00.2]} 3... a6 {[%clk 0:02:58.4]}
4. Ba4 {[%clk 0:02:59.8]} 4... Nf6 {[%clk 0:02:57.1]} 5. d4 {[%clk 0:02:59.3]}
5... exd4 {[%clk 0:02:56.1]} 6. O-O {[%clk 0:02:58.7]} 6... Nxe4 {[%clk
0:02:50.6]} 7. Re1 {[%clk 0:02:52.9]} 7... f5 {[%clk 0:02:46.6]} 8. Nxd4 {[%clk
0:02:46.5]} 8... Nxd4 {[%clk 0:02:45.2]} 9. Qxd4 {[%clk 0:02:45.9]} 9... b5
{[%clk 0:02:43.5]} 10. Bb3 {[%clk 0:02:43.3]} 10... Bb7 {[%clk 0:02:39.3]} 11.
Nc3 {[%clk 0:02:14.1]} 11... Qf6 {[%clk 0:02:33.3]} 12. Qxf6 {[%clk 0:02:09.9]}
12... gxf6 {[%clk 0:02:32.3]} 13. f3 {[%clk 0:02:06.6]} 13... O-O-O {[%clk
0:02:29.5]} 14. fxe4 {[%clk 0:02:04.8]} 14... Bxe4 {[%clk 0:02:29.3]} 15. Nxe4
{[%clk 0:02:01.5]} 15... fxe4 {[%clk 0:02:28.9]} 16. Bd5 {[%clk 0:01:50.6]}
16... f5 {[%clk 0:02:22.3]} 17. g4 {[%clk 0:01:43.3]} 17... c6 {[%clk
0:02:21.2]} 18. Bf7 {[%clk 0:01:37.1]} 18... d5 {[%clk 0:02:11]} 19. gxf5 {[%clk
0:01:31.5]} 19... Kc7 {[%clk 0:02:10.5]} 20. Bf4+ {[%clk 0:01:27.6]} 20... Kb7
{[%clk 0:02:08.6]} 21. Be5 {[%clk 0:01:26.8]} 21... Bg7 {[%clk 0:02:05.9]} 22.
Bxg7 {[%clk 0:01:25]} 22... Rd7 {[%clk 0:02:06.2]} 23. Bxh8 {[%clk 0:01:24.4]}
23... Rxf7 {[%clk 0:02:06.3]} 24. Rf1 {[%clk 0:01:21.1]} 24... Rf8 {[%clk
0:02:05.9]} 25. Be5 {[%clk 0:01:20.7]} 25... Rf7 {[%clk 0:02:04.7]} 26. f6
{[%clk 0:01:20.9]} 26... h5 {[%clk 0:02:00.8]} 27. b4 {[%clk 0:01:19]} 27... Kc8
{[%clk 0:02:00.7]} 28. Rf5 {[%clk 0:01:18.4]} 28... Kd7 {[%clk 0:02:00.8]} 29.
Rxh5 {[%clk 0:01:17.3]} 29... Ke6 {[%clk 0:02:00.9]} 30. Rf1 {[%clk 0:01:15.5]}
30... c5 {[%clk 0:01:57.2]} 31. bxc5 {[%clk 0:01:13.8]} 31... d4 {[%clk
0:01:56.8]} 32. Bxd4 {[%clk 0:01:13.1]} 32... a5 {[%clk 0:01:51.6]} 33. Re5+
{[%clk 0:01:11.2]} 33... Kd7 {[%clk 0:01:51.2]} 34. Re7+ {[%clk 0:01:11.1]}
34... Kc6 {[%clk 0:01:48.1]} 35. Rxf7 {[%clk 0:01:10.4]} 35... b4 {[%clk
0:01:48]} 36. Re7 {[%clk 0:01:09.3]} 36... b3 {[%clk 0:01:48.1]} 37. cxb3 {[%clk
0:01:08.4]} 37... a4 {[%clk 0:01:48]} 38. bxa4 {[%clk 0:01:06.8]} 38... e3
{[%clk 0:01:48.1]} 39. Bxe3 {[%clk 0:01:05.8]} 39... Kd5 {[%clk 0:01:47.4]} 40.
f7 {[%clk 0:01:05.2]} 40... Kc4 {[%clk 0:01:46.8]} 41. f8=Q {[%clk 0:01:03.1]}
41... Kb4 {[%clk 0:01:46.8]} 42. Qf4+ {[%clk 0:01:01.8]} 42... Ka3 {[%clk
0:01:46.6]} 43. Qd4 {[%clk 0:00:55.7]} 43... Kxa2 {[%clk 0:01:44.9]} 44. Rf2+
{[%clk 0:00:53.8]} 44... Ka3 {[%clk 0:01:39.3]} 45. Qc3+ {[%clk 0:00:51.9]}
45... Kxa4 {[%clk 0:01:36.9]} 46. Ra2+ {[%clk 0:00:47.8]} 46... Kb5 {[%clk
0:01:36.3]} 47. Qb3+ {[%clk 0:00:46.3]} 47... Kc6 {[%clk 0:01:35.8]} 48. Re6+
{[%clk 0:00:45.7]} 48... Kc7 {[%clk 0:01:31.9]} 49. Qb6+ {[%clk 0:00:45]} 49...
Kd7 {[%clk 0:01:25.3]} 50. Qd6+ {[%clk 0:00:43.4]} 50... Kc8 {[%clk 0:01:24.8]}
51. Qc6+ {[%clk 0:00:41.3]} 51... Kb8 {[%clk 0:01:22.3]} 52. Rb2+ {[%clk
0:00:39.6]} 52... Ka7 {[%clk 0:01:21.7]} 53. Qb7# {[%clk 0:00:39.7]} 1-0

[Event "Betsys MČR v online bleskovém šachu 2021"]
[Site "Chess.com"]
[Date "2021.04.17"]
[Round "3"]
[White "MaTpAt113"]
[Black "horalek"]
[Result "0-1"]
[WhiteElo "845"]
[BlackElo "1348"]
[TimeControl "180+1"]
[EndTime "9:26:08 PDT"]
[Termination "Uživatel horalek zvítězil po vzdání soupeře"]

1. e4 {[%clk 0:03:00.9]} 1... c6 {[%clk 0:02:56.4]} 2. Nc3 {[%clk 0:02:58.6]}
2... d5 {[%clk 0:02:54.8]} 3. f4 {[%clk 0:02:57.5]} 3... dxe4 {[%clk 0:02:53.2]}
4. Nxe4 {[%clk 0:02:56.1]} 4... Nf6 {[%clk 0:02:51.9]} 5. Nxf6+ {[%clk
0:02:50.2]} 5... exf6 {[%clk 0:02:51.2]} 6. Bc4 {[%clk 0:02:50.5]} 6... Be7
{[%clk 0:02:47.8]} 7. d3 {[%clk 0:02:50.2]} 7... Bf5 {[%clk 0:02:42.6]} 8. Nf3
{[%clk 0:02:49.9]} 8... O-O {[%clk 0:02:40.1]} 9. O-O {[%clk 0:02:49.7]} 9...
Nd7 {[%clk 0:02:37]} 10. Kh1 {[%clk 0:02:48.8]} 10... Nb6 {[%clk 0:02:36]} 11.
Be3 {[%clk 0:02:40.2]} 11... Bg4 {[%clk 0:02:30.3]} 12. h3 {[%clk 0:02:37.2]}
12... Bh5 {[%clk 0:02:27.9]} 13. Qe1 {[%clk 0:02:33.8]} 13... Bxf3 {[%clk
0:02:23.7]} 14. Rxf3 {[%clk 0:02:32.8]} 14... Nxc4 {[%clk 0:02:21.6]} 15. dxc4
{[%clk 0:02:30.6]} 15... Re8 {[%clk 0:02:19.6]} 16. Qg3 {[%clk 0:02:28.4]} 16...
f5 {[%clk 0:02:14.1]} 17. Bd4 {[%clk 0:02:04.9]} 17... Qxd4 {[%clk 0:02:04.6]}
18. Rd3 {[%clk 0:01:59.5]} 18... Qxb2 {[%clk 0:02:01.8]} 19. Rad1 {[%clk
0:01:52.2]} 19... Rad8 {[%clk 0:01:57.8]} 20. Qe3 {[%clk 0:01:14.9]} 20... Rxd3
{[%clk 0:01:49.9]} 21. Rxd3 {[%clk 0:01:08.5]} 21... Qf6 {[%clk 0:01:46.1]} 22.
Kh2 {[%clk 0:01:02.3]} 22... Kf8 {[%clk 0:01:42.7]} 23. Qxa7 {[%clk 0:00:57.6]}
23... Bd6 {[%clk 0:01:37.9]} 24. Qd4 {[%clk 0:00:44.4]} 24... Qxd4 {[%clk
0:01:36.4]} 25. Rxd4 {[%clk 0:00:43.8]} 25... Rd8 {[%clk 0:01:28.6]} 26. c3
{[%clk 0:00:38.9]} 26... c5 {[%clk 0:01:25.2]} 27. Rd5 {[%clk 0:00:33]} 27...
Bxf4+ {[%clk 0:01:22.6]} 28. Kg1 {[%clk 0:00:31.9]} 28... Rxd5 {[%clk
0:01:21.6]} 29. cxd5 {[%clk 0:00:31.7]} 29... c4 {[%clk 0:01:16.5]} 30. Kf2
{[%clk 0:00:29.7]} 30... Ke7 {[%clk 0:01:15.5]} 31. Kf3 {[%clk 0:00:29.2]} 31...
g5 {[%clk 0:01:12.2]} 32. g3 {[%clk 0:00:27.8]} 32... Bc7 {[%clk 0:01:08.1]} 33.
g4 {[%clk 0:00:26.3]} 33... fxg4+ {[%clk 0:01:03.5]} 34. hxg4 {[%clk 0:00:25]}
34... Kd6 {[%clk 0:01:02.6]} 35. Ke3 {[%clk 0:00:22.2]} 35... Kxd5 {[%clk
0:01:01.3]} 0-1

[Event "Betsys MČR v online bleskovém šachu 2021"]
[Site "Chess.com"]
[Date "2021.04.17"]
[Round "3"]
[White "pburak"]
[Black "sachmaty8"]
[Result "1/2-1/2"]
[WhiteElo "1136"]
[BlackElo "1829"]
[TimeControl "180+1"]
[EndTime "9:26:09 PDT"]
[Termination "Remíza dohodou"]

1. e4 {[%clk 0:03:00.9]} 1... e6 {[%clk 0:02:58.8]} 2. d4 {[%clk 0:02:59.6]}
2... d5 {[%clk 0:02:57.9]} 3. exd5 {[%clk 0:02:58.6]} 3... exd5 {[%clk
0:02:57.7]} 4. c4 {[%clk 0:02:55.9]} 4... c6 {[%clk 0:02:56.5]} 5. Nf3 {[%clk
0:02:53.7]} 5... Nf6 {[%clk 0:02:56.1]} 6. Bg5 {[%clk 0:02:50.8]} 6... Be7
{[%clk 0:02:54.4]} 7. Nc3 {[%clk 0:02:46.3]} 7... O-O {[%clk 0:02:53.7]} 8. Be2
{[%clk 0:02:37.9]} 8... Bg4 {[%clk 0:02:53.5]} 9. Qb3 {[%clk 0:02:26.3]} 9...
Qd7 {[%clk 0:02:39.3]} 10. O-O {[%clk 0:02:22.9]} 10... Be6 {[%clk 0:02:32.5]}
11. Ne5 {[%clk 0:02:14.1]} 11... Qc7 {[%clk 0:02:32.1]} 12. Rfe1 {[%clk
0:01:55.7]} 12... Rd8 {[%clk 0:02:24.3]} 13. c5 {[%clk 0:01:49.7]} 13... Ne4
{[%clk 0:02:21.3]} 14. Bxe7 {[%clk 0:01:39.2]} 14... Qxe7 {[%clk 0:02:18.6]} 15.
Bf3 {[%clk 0:01:30.6]} 15... Nxc3 {[%clk 0:02:08]} 16. bxc3 {[%clk 0:01:19.9]}
16... Qc7 {[%clk 0:01:43.3]} 17. Rab1 {[%clk 0:01:15.6]} 17... Nd7 {[%clk
0:01:27.3]} 18. Qxb7 {[%clk 0:01:08.5]} 18... Qxb7 {[%clk 0:01:19.1]} 19. Rxb7
{[%clk 0:01:06.4]} 19... Nxe5 {[%clk 0:01:19.1]} 20. dxe5 {[%clk 0:01:05.2]}
20... Rdb8 {[%clk 0:01:17.7]} 21. Reb1 {[%clk 0:01:03.7]} 21... Rxb7 {[%clk
0:01:13.1]} 22. Rxb7 {[%clk 0:01:02.6]} 22... g6 {[%clk 0:01:12.4]} 23. Kf1
{[%clk 0:00:57.4]} 23... Bf5 {[%clk 0:01:08.3]} 24. Ke2 {[%clk 0:00:53]} 24...
Re8 {[%clk 0:01:06.5]} 25. Rxa7 {[%clk 0:00:47.8]} 25... Rxe5+ {[%clk 0:01:06]}
26. Kd2 {[%clk 0:00:46.8]} 26... Re8 {[%clk 0:00:55.2]} 27. Rc7 {[%clk
0:00:42.6]} 27... Ra8 {[%clk 0:00:54.8]} 28. Rxc6 {[%clk 0:00:39.7]} 28... Rxa2+
{[%clk 0:00:53.7]} 29. Ke3 {[%clk 0:00:37.9]} 1/2-1/2

[Event "Betsys MČR v online bleskovém šachu 2021"]
[Site "Chess.com"]
[Date "2021.04.17"]
[Round "3"]
[White "Countryside_58"]
[Black "czlolcz"]
[Result "0-1"]
[WhiteElo "2437"]
[BlackElo "2214"]
[TimeControl "180+1"]
[EndTime "9:26:12 PDT"]
[Termination "Uživatel czlolcz zvítězil po vzdání soupeře"]

1. h4 {[%clk 0:03:00.9]} 1... d5 {[%clk 0:02:55.6]} 2. h5 {[%clk 0:02:56.1]}
2... Nf6 {[%clk 0:02:54.4]} 3. d4 {[%clk 0:02:54.6]} 3... c5 {[%clk 0:02:53.8]}
4. c3 {[%clk 0:02:53.6]} 4... Nc6 {[%clk 0:02:53.2]} 5. Nf3 {[%clk 0:02:53]}
5... Bf5 {[%clk 0:02:51.3]} 6. h6 {[%clk 0:02:51.4]} 6... g6 {[%clk 0:02:49.7]}
7. Bf4 {[%clk 0:02:50.5]} 7... Qb6 {[%clk 0:02:39.8]} 8. Qb3 {[%clk 0:02:49.6]}
8... e6 {[%clk 0:02:32.7]} 9. e3 {[%clk 0:02:45]} 9... Qxb3 {[%clk 0:02:19.2]}
10. axb3 {[%clk 0:02:43.9]} 10... cxd4 {[%clk 0:02:19]} 11. exd4 {[%clk
0:02:43.3]} 11... Bxb1 {[%clk 0:02:03.2]} 12. Rxb1 {[%clk 0:02:35]} 12... Ne4
{[%clk 0:02:03]} 13. Bd3 {[%clk 0:02:32.3]} 13... f5 {[%clk 0:02:01.2]} 14. Ng5
{[%clk 0:02:27.3]} 14... Nxg5 {[%clk 0:01:58.5]} 15. Bxg5 {[%clk 0:02:26.6]}
15... Be7 {[%clk 0:01:49.4]} 16. Bxe7 {[%clk 0:02:26]} 16... Kxe7 {[%clk
0:01:50.3]} 17. b4 {[%clk 0:02:24.3]} 17... Kf6 {[%clk 0:01:28.9]} 18. f4 {[%clk
0:02:21.7]} 18... g5 {[%clk 0:01:26.2]} 19. fxg5+ {[%clk 0:02:10.7]} 19... Kxg5
{[%clk 0:01:24.3]} 20. Be2 {[%clk 0:02:11.2]} 20... Ne7 {[%clk 0:01:14.7]} 21.
Kf2 {[%clk 0:01:57.7]} 21... Ng8 {[%clk 0:01:04]} 22. Rh5+ {[%clk 0:01:56.8]}
22... Kg6 {[%clk 0:01:03.9]} 23. Rbh1 {[%clk 0:01:57.1]} 23... Nf6 {[%clk
0:01:03.6]} 24. R5h3 {[%clk 0:01:52.1]} 24... Ne4+ {[%clk 0:01:02.4]} 25. Ke3
{[%clk 0:01:52]} 25... Rhg8 {[%clk 0:00:54.6]} 26. Bf3 {[%clk 0:01:52]} 26...
Kf6 {[%clk 0:00:51.8]} 27. Ra1 {[%clk 0:01:44.8]} 27... a6 {[%clk 0:00:44.9]}
28. Ra5 {[%clk 0:01:33.2]} 28... b6 {[%clk 0:00:29.1]} 29. Ra1 {[%clk
0:01:31.3]} 29... a5 {[%clk 0:00:29.1]} 30. bxa5 {[%clk 0:01:30.4]} 30... Rxa5
{[%clk 0:00:28.1]} 31. Rxa5 {[%clk 0:01:16.2]} 31... bxa5 {[%clk 0:00:29]} 32.
Bxe4 {[%clk 0:01:10.3]} 32... fxe4 {[%clk 0:00:25.1]} 33. g3 {[%clk 0:01:11.2]}
33... Rb8 {[%clk 0:00:23.4]} 34. Rh2 {[%clk 0:01:10.8]} 34... Kg5 {[%clk
0:00:23]} 35. c4 {[%clk 0:01:10.3]} 35... Rb3+ {[%clk 0:00:20.4]} 36. Kf2 {[%clk
0:01:09.4]} 36... Rxb2+ {[%clk 0:00:19.8]} 37. Kg1 {[%clk 0:01:09.9]} 37... Rxh2
{[%clk 0:00:19.5]} 38. Kxh2 {[%clk 0:01:09.7]} 38... dxc4 {[%clk 0:00:20.1]} 0-1

[Event "Betsys MČR v online bleskovém šachu 2021"]
[Site "Chess.com"]
[Date "2021.04.17"]
[Round "3"]
[White "Chessillusion213"]
[Black "Varinius"]
[Result "0-1"]
[WhiteElo "2170"]
[BlackElo "2454"]
[TimeControl "180+1"]
[EndTime "9:26:12 PDT"]
[Termination "Uživatel Varinius zvítězil po vzdání soupeře"]

1. d4 {[%clk 0:03:00.6]} 1... Nf6 {[%clk 0:02:57.3]} 2. c4 {[%clk 0:03:00.3]}
2... c5 {[%clk 0:02:57.1]} 3. d5 {[%clk 0:02:59.9]} 3... b5 {[%clk 0:02:57.5]}
4. Qc2 {[%clk 0:03:00.3]} 4... b4 {[%clk 0:02:48.1]} 5. e4 {[%clk 0:02:59.8]}
5... d6 {[%clk 0:02:48.1]} 6. a3 {[%clk 0:02:58.4]} 6... Na6 {[%clk 0:02:46.3]}
7. Nf3 {[%clk 0:02:49.9]} 7... g6 {[%clk 0:02:45.2]} 8. Be2 {[%clk 0:02:47.7]}
8... Bg7 {[%clk 0:02:44.8]} 9. O-O {[%clk 0:02:46.1]} 9... O-O {[%clk
0:02:38.8]} 10. h3 {[%clk 0:02:46.1]} 10... bxa3 {[%clk 0:02:37.2]} 11. Nxa3
{[%clk 0:01:55.4]} 11... Nb4 {[%clk 0:02:35.4]} 12. Qb1 {[%clk 0:01:51.5]} 12...
e6 {[%clk 0:02:14.3]} 13. Nc2 {[%clk 0:01:46.4]} 13... exd5 {[%clk 0:01:49.3]}
14. exd5 {[%clk 0:01:32.9]} 14... Bf5 {[%clk 0:01:47.9]} 15. Bd1 {[%clk
0:01:07.1]} 15... Re8 {[%clk 0:01:45.3]} 16. Bd2 {[%clk 0:01:03.2]} 16... a5
{[%clk 0:01:02.5]} 17. Bxb4 {[%clk 0:00:43.8]} 17... axb4 {[%clk 0:01:02.4]} 18.
Rxa8 {[%clk 0:00:43.2]} 18... Qxa8 {[%clk 0:01:03.1]} 19. b3 {[%clk 0:00:42.9]}
19... Ne4 {[%clk 0:01:00.5]} 20. Qc1 {[%clk 0:00:23.5]} 20... Qa2 {[%clk
0:00:51.2]} 21. Ne3 {[%clk 0:00:20.6]} 21... Bd7 {[%clk 0:00:41.3]} 22. Bc2
{[%clk 0:00:20.1]} 22... Nc3 {[%clk 0:00:37.6]} 23. Nd1 {[%clk 0:00:16]} 23...
Ne2+ {[%clk 0:00:36.7]} 0-1

[Event "Betsys MČR v online bleskovém šachu 2021"]
[Site "Chess.com"]
[Date "2021.04.17"]
[Round "3"]
[White "TommyLud"]
[Black "Trickov"]
[Result "0-1"]
[WhiteElo "2124"]
[BlackElo "2390"]
[TimeControl "180+1"]
[EndTime "9:26:13 PDT"]
[Termination "Uživatel Trickov zvítězil po vzdání soupeře"]

1. d4 {[%clk 0:03:00.9]} 1... d5 {[%clk 0:02:58.4]} 2. c4 {[%clk 0:03:01]} 2...
c6 {[%clk 0:02:58.2]} 3. Nf3 {[%clk 0:03:00.6]} 3... Nf6 {[%clk 0:02:58.4]} 4.
Nc3 {[%clk 0:03:00.7]} 4... dxc4 {[%clk 0:02:58.2]} 5. a4 {[%clk 0:03:00.3]}
5... Bf5 {[%clk 0:02:58.3]} 6. Ne5 {[%clk 0:03:00.4]} 6... Nbd7 {[%clk
0:02:57.2]} 7. Nxc4 {[%clk 0:03:00]} 7... Qc7 {[%clk 0:02:57.7]} 8. g3 {[%clk
0:02:58.5]} 8... e5 {[%clk 0:02:57.7]} 9. dxe5 {[%clk 0:02:58.2]} 9... Nxe5
{[%clk 0:02:57.5]} 10. Bf4 {[%clk 0:02:58.2]} 10... Rd8 {[%clk 0:02:57.9]} 11.
Qb3 {[%clk 0:02:44.9]} 11... Be6 {[%clk 0:02:55.1]} 12. e3 {[%clk 0:02:05.1]}
12... Nf3+ {[%clk 0:02:00.3]} 13. Ke2 {[%clk 0:02:02.8]} 13... Nd2 {[%clk
0:01:49.3]} 14. Nxd2 {[%clk 0:01:24.2]} 14... Rxd2+ {[%clk 0:01:38.8]} 15. Ke1
{[%clk 0:01:24.3]} 15... Bxb3 {[%clk 0:01:27.9]} 16. Bxc7 {[%clk 0:01:23.2]}
16... Rxb2 {[%clk 0:01:26.5]} 17. Be5 {[%clk 0:01:05]} 17... Bb4 {[%clk
0:01:14.6]} 18. Rc1 {[%clk 0:00:42.4]} 18... O-O {[%clk 0:01:01]} 19. Be2 {[%clk
0:00:40.1]} 19... Nd7 {[%clk 0:00:43.7]} 20. Bf4 {[%clk 0:00:22.1]} 20... Bc2
{[%clk 0:00:34.5]} 21. Kd2 {[%clk 0:00:14.7]} 21... Be4+ {[%clk 0:00:28.4]} 0-1

[Event "Betsys MČR v online bleskovém šachu 2021"]
[Site "Chess.com"]
[Date "2021.04.17"]
[Round "3"]
[White "Mimochodem"]
[Black "rolkento"]
[Result "0-1"]
[WhiteElo "1787"]
[BlackElo "2255"]
[TimeControl "180+1"]
[EndTime "9:26:13 PDT"]
[Termination "Uživatel rolkento zvítězil po vzdání soupeře"]

1. e4 {[%clk 0:03:00.9]} 1... e6 {[%clk 0:03:00.2]} 2. Nf3 {[%clk 0:03:00.6]}
2... d5 {[%clk 0:03:00.4]} 3. exd5 {[%clk 0:03:01.1]} 3... exd5 {[%clk
0:03:00.6]} 4. d4 {[%clk 0:03:01.6]} 4... Nf6 {[%clk 0:03:00.9]} 5. c4 {[%clk
0:03:02.1]} 5... Bb4+ {[%clk 0:02:59.5]} 6. Nc3 {[%clk 0:03:02.1]} 6... O-O
{[%clk 0:02:58.9]} 7. Be2 {[%clk 0:03:01.8]} 7... dxc4 {[%clk 0:02:56.4]} 8. O-O
{[%clk 0:03:01.7]} 8... Bxc3 {[%clk 0:02:56.5]} 9. bxc3 {[%clk 0:03:00.6]} 9...
b5 {[%clk 0:02:56.9]} 10. a4 {[%clk 0:02:59.2]} 10... c6 {[%clk 0:02:55.8]} 11.
axb5 {[%clk 0:02:57.6]} 11... cxb5 {[%clk 0:02:55.4]} 12. Ne5 {[%clk 0:02:54.2]}
12... Bb7 {[%clk 0:02:52.8]} 13. Bg5 {[%clk 0:02:51.4]} 13... Nbd7 {[%clk
0:02:42.5]} 14. Ng4 {[%clk 0:02:49.1]} 14... Qb6 {[%clk 0:02:35.2]} 15. Bf3
{[%clk 0:02:39.4]} 15... Nxg4 {[%clk 0:02:22.4]} 16. Bxg4 {[%clk 0:02:35.9]}
16... Nf6 {[%clk 0:02:18.9]} 17. Bf3 {[%clk 0:02:29]} 17... Nd5 {[%clk
0:02:17.3]} 18. Qd2 {[%clk 0:02:18.6]} 18... a5 {[%clk 0:02:13.5]} 19. Rfb1
{[%clk 0:02:12.5]} 19... b4 {[%clk 0:02:09.1]} 20. Bxd5 {[%clk 0:02:12.1]} 20...
Bxd5 {[%clk 0:02:07.8]} 21. cxb4 {[%clk 0:02:09.9]} 21... axb4 {[%clk
0:02:07.8]} 22. Rxa8 {[%clk 0:02:08.2]} 22... Rxa8 {[%clk 0:02:07.2]} 23. Be3
{[%clk 0:01:45]} 23... c3 {[%clk 0:01:59]} 24. Qc2 {[%clk 0:01:42.3]} 24... h6
{[%clk 0:01:34.3]} 25. h3 {[%clk 0:01:42.5]} 25... Ra2 {[%clk 0:01:28.8]} 26.
Qxc3 {[%clk 0:01:38.6]} 26... bxc3 {[%clk 0:01:28.7]} 27. Rxb6 {[%clk
0:01:37.1]} 27... c2 {[%clk 0:01:24.1]} 28. Rd6 {[%clk 0:01:35.1]} 28... Bb7
{[%clk 0:01:05.5]} 29. Rd7 {[%clk 0:01:28.8]} 29... Bc6 {[%clk 0:00:58.2]} 30.
Rc7 {[%clk 0:01:24.6]} 30... Be4 {[%clk 0:00:40.5]} 31. Kh2 {[%clk 0:01:20.6]}
31... g5 {[%clk 0:00:40]} 32. Kg3 {[%clk 0:01:19.3]} 32... Kg7 {[%clk
0:00:39.1]} 33. Rc4 {[%clk 0:01:10.6]} 33... Kg6 {[%clk 0:00:35.5]} 34. d5
{[%clk 0:01:10.3]} 34... Bxd5 {[%clk 0:00:32.7]} 35. Rc5 {[%clk 0:01:08.4]}
35... Be6 {[%clk 0:00:28.7]} 36. Bc1 {[%clk 0:01:07.8]} 36... f5 {[%clk
0:00:27.5]} 37. Rc6 {[%clk 0:01:05.5]} 37... Kf7 {[%clk 0:00:26.9]} 38. h4
{[%clk 0:01:05.5]} 38... f4+ {[%clk 0:00:25.7]} 39. Kf3 {[%clk 0:01:04.3]} 39...
Bd5+ {[%clk 0:00:25.4]} 0-1